bitfinex-derivatives/quotes_SOLF0:USTF0_20250829
["timestamp","ask_amount","ask_price","bid_price","bid_amount"]
[1756484149291,4.3947,204.77,204.67,11.6064]
[1756484149792,80.57126373,204.74,204.59,7.21]
[1756484150690,3.37440642,204.73,204.59,7.21]
[1756484150885,12.20186373,204.74,204.59,7.21]
[1756484151080,12.20186373,204.74,204.6,68.4156]
[1756484151288,0.85030481,204.75,204.61,7.21]
[1756484151489,0.85030481,204.75,204.67,68.3924]
[1756484151792,149.7,204.81,204.68,7.21]
[1756484151991,150.55007634,204.81,204.71,4.3955]
[1756484152192,150.55007634,204.81,204.7,68.3822]
[1756484152193,3.37850511,204.8,204.7,68.3822]
[1756484152388,0.05,204.87,204.72,68.3757]
[1756484152691,77.58244283,204.86,204.71,7.21]
[1756484152894,0.84991025,204.84,204.71,7.21]
[1756484153191,6.9037686,204.83,204.73,4.3952]
[1756484153389,5.73253749,204.82,204.73,4.3952]
[1756484153585,5.69094818,204.81,204.74,68.3669]
[1756484153789,5.17053561,204.88,204.74,68.3669]
[1756484153790,5.17053561,204.88,204.8,75.5576]
[1756484153988,5.17053561,204.88,204.81,68.3439]
[1756484154193,5.17053561,204.88,204.84,4.3929]
[1756484154388,5.17053561,204.88,204.82,68.3424]
[1756484154596,5.17053561,204.88,204.82,75.5524]
[1756484154794,5.17053561,204.88,204.85,11.6027]
[1756484154996,5.17053561,204.88,204.86,7.21]
[1756484155294,5.17053561,204.88,204.87,4.3923]
[1756484155991,5.17053561,204.88,204.8,7.21]
[1756484156190,5.17053561,204.88,204.81,68.3456]
[1756484156997,5.17053561,204.88,204.83,4.3931]
[1756484157295,5.17053561,204.88,204.8,7.21]
[1756484157890,5.17053561,204.88,204.82,4.3933]
[1756484158096,5.17053561,204.88,204.8,7.21]
[1756484159997,5.17053561,204.88,204.75,7.21]
[1756484160498,68.3766,204.87,204.75,7.21]
[1756484161199,68.3766,204.87,204.7,11.6058]
[1756484161200,4.3935,204.82,204.7,11.6058]
[1756484161597,0.05,204.83,204.7,11.6058]
[1756484162299,149.03,204.83,204.7,11.6058]
[1756484163288,0.05,204.83,204.72,68.3745]
[1756484163694,0.05,204.83,204.7,7.21]
[1756484163894,0.03584147,204.8,204.7,7.21]
[1756484164700,0.03584147,204.8,204.74,4.395]
[1756484165403,0.03584147,204.8,204.71,4.3956]
[1756484165599,0.03584147,204.8,204.7,7.21]
[1756484166703,0.03584147,204.8,204.73,4.3953]
[1756484168001,0.03584147,204.8,204.7,11.6058]
[1756484168207,68.3598,204.77,204.65,7.95]
[1756484169203,4.3947,204.76,204.65,7.95]
[1756484169406,0.07,204.79,204.65,76.349]
[1756484169612,0.07,204.79,204.65,7.95]
[1756484170107,0.07,204.79,204.62,5.43574278]
[1756484170108,68.39,204.68,204.62,5.43574278]
[1756484170312,68.486,204.6,204.57,0.5317277]
[1756484170507,68.486,204.6,204.48,7.95]
[1756484170508,4.3991,204.56,204.48,7.95]
[1756484170808,0.07,204.58,204.52,10.76201728]
[1756484171214,4.3988,204.57,204.52,10.76201728]
[1756484171514,4.4688,204.57,204.52,10.76201728]
[1756484172014,0.07,204.64,204.52,10.76201728]
[1756484172708,328.14,204.65,204.52,87.15371728]
[1756484172913,0.07,204.7,204.57,68.4248]
[1756484173117,229.15146373,204.74,204.58,7.95]
[1756484173306,4.3958,204.71,204.61,4.3979]
[1756484173512,12.20186373,204.74,204.61,68.4115]
[1756484173714,0.07,204.75,204.63,68.405]
[1756484174015,0.07,204.84,204.7,7.95]
[1756484174214,278.42963871,204.87,204.73,68.3719]
[1756484174414,68.3363,204.84,204.74,7.95]
[1756484174716,68.3461,204.81,204.66,7.95]
[1756484174914,4.3941,204.79,204.69,4.3962]
[1756484175818,12.20186373,204.85,204.73,4.3953]
[1756484176023,0.07,204.86,204.74,7.95]
[1756484176421,12.20186373,204.84,204.74,7.95]
[1756484176918,16.59496373,204.84,204.74,7.95]
[1756484177120,80.53896373,204.84,204.6,68.4136]
[1756484177321,68.3408,204.83,204.66,7.95]
[1756484177511,69.153399,204.94,204.75,68.3635]
[1756484177713,0.849599,204.94,204.81,7.95]
[1756484178623,68.3059,204.93,204.81,7.95]
[1756484179824,4.3914,204.92,204.81,7.95]
[1756484180629,4.3918,204.9,204.81,7.95]
[1756484180827,80.51476373,204.91,204.81,7.95]
[1756484181030,68.3079,204.93,204.76,7.95]
[1756484181926,4.3913,204.92,204.8,7.95]
[1756484182124,80.48496373,205.0,204.83,7.95]
[1756484182324,80.48496373,205.0,204.82,68.342]
[1756484182325,12.20186373,205.0,204.85,7.95]
[1756484182522,81.33408281,205.0,204.85,12.3427]
[1756484183026,5.23891908,205.0,204.87,4.3922]
[1756484183332,0.0324165,204.95,204.88,7.95]
[1756484184033,0.0324165,204.95,204.88,12.342]
[1756484184831,0.84917401,205.04,204.93,7.95]
[1756484185029,68.263,205.06,204.93,7.95]
[1756484185725,68.2794,205.01,204.93,7.95]
[1756484186129,68.2794,205.01,204.97,0.03618747]
[1756484186527,4.3898,204.99,204.97,0.03618747]
[1756484187028,81.31389271,205.06,204.98,7.95]
[1756484187029,0.84902898,205.06,204.98,7.95]
[1756484187230,75.806709,205.1,204.98,7.95]
[1756484187635,9.55863561,205.07,204.98,7.95]
[1756484187835,5.25053561,205.07,204.97,0.03618747]
[1756484188230,68.266,205.05,204.97,0.03618747]
[1756484188730,68.2627,205.06,204.97,0.03618747]
[1756484188934,68.2631,205.06,204.97,0.03618747]
[1756484189136,80.46496373,205.06,204.97,0.03618747]
[1756484189638,4.389,205.03,204.97,0.03618747]
[1756484190340,68.2773,205.02,204.97,0.03618747]
[1756484190535,68.27,205.04,204.97,0.03618747]
[1756484190734,5.17053561,205.07,204.97,0.03618747]
[1756484191238,5.17053561,205.07,204.97,4.42628747]
[1756484191426,5.17053561,205.07,204.98,7.95]
[1756484191633,5.17053561,205.07,204.99,68.2847]
[1756484191834,5.17053561,205.07,205.01,7.95]
[1756484192035,5.17053561,205.07,205.02,4.389]
[1756484192434,5.17053561,205.07,205.02,4.42507835]
[1756484192634,5.17053561,205.07,205.03,7.95]
[1756484192833,5.17053561,205.07,205.02,0.03607835]
[1756484193334,68.2502,205.1,205.02,0.03607835]
[1756484193539,4.3885,205.05,205.02,0.03607835]
[1756484194736,4.3879,205.08,205.02,0.03607835]
[1756484195040,68.2435,205.12,205.02,0.03607835]
[1756484195341,68.2481,205.11,205.02,0.03607835]
[1756484195738,4.3879,205.08,205.02,0.03607835]
[1756484197041,68.2399,205.13,205.02,0.03607835]
[1756484197341,68.2384,205.14,205.02,0.03607835]
[1756484197536,4.3871,205.12,205.02,11.61517835]
[1756484197741,0.03302482,205.1,205.04,68.2691]
[1756484198037,68.2106,205.22,205.08,7.19]
[1756484198038,4.385,205.22,205.08,7.19]
[1756484198341,5.17053561,205.25,205.12,7.19]
[1756484198542,4.3851,205.21,205.12,7.19]
[1756484198942,6.01885056,205.25,205.12,7.19]
[1756484199240,6.01885056,205.25,205.14,0.03734309]
[1756484199444,5.17053561,205.25,205.15,7.19]
[1756484200147,5.17053561,205.25,205.16,4.3861]
[1756484200338,5.17053561,205.25,205.15,7.19]
[1756484200539,5.17053561,205.25,205.17,7.19]
[1756484200843,5.17053561,205.25,205.18,0.03161015]
[1756484201044,5.17053561,205.25,205.21,7.19]
[1756484201443,5.17053561,205.25,205.19,7.19]
[1756484201642,5.17053561,205.25,205.21,4.385]
[1756484202036,5.17053561,205.25,205.22,0.48]
[1756484202244,5.17053561,205.25,205.2,16.58696373]
[1756484202443,5.17053561,205.25,205.21,7.19]
[1756484202645,5.17053561,205.25,205.18,0.03161015]
[1756484203244,5.23053561,205.25,205.18,0.03161015]
[1756484203841,4.385,205.22,205.18,0.03161015]
[1756484204041,68.2062,205.23,205.18,0.03161015]
[1756484204240,0.06,205.21,205.18,0.03161015]
[1756484204644,68.2165,205.2,205.09,7.19]
[1756484205146,4.3854,205.2,205.09,7.19]
[1756484205845,68.2196,205.19,205.09,7.19]
[1756484206042,12.20186373,205.21,205.12,0.03199206]
[1756484206444,4.385,205.22,205.12,0.03199206]
[1756484206647,0.06,205.23,205.12,0.03199206]
[1756484207146,80.39026373,205.29,205.12,0.03199206]
[1756484207147,16.64536373,205.29,205.14,68.2357]
[1756484207347,0.06,205.29,205.16,68.2291]
[1756484207646,327.6,205.31,205.19,4.3854]
[1756484207647,4.3831,205.3,205.19,4.3854]
[1756484207852,4.3831,205.3,205.2,0.0345702]
[1756484208041,327.6,205.31,205.2,0.0345702]
[1756484208440,331.9829,205.31,205.2,4.4197702]
[1756484209941,0.06,205.3,205.2,4.4197702]
[1756484210146,0.06,205.3,205.22,4.3848]
[1756484210337,0.06,205.3,205.2,0.0345702]
[1756484211147,12.26186373,205.3,205.2,0.0345702]
[1756484211351,0.06,205.21,205.1,7.19]
[1756484212048,4.3855,205.19,205.1,7.19]
[1756484212345,0.06,205.21,205.05,7.19]
[1756484212346,68.218,205.2,205.05,7.19]
[1756484212843,68.2244,205.18,205.05,11.5783]
[1756484213045,0.06,205.21,205.06,68.2617]
[1756484213249,80.41816373,205.2,205.05,7.19]
[1756484213744,12.20186373,205.16,205.03,4.3888]
[1756484214250,12.20186373,205.16,205.01,327.6]
[1756484214251,4.3869,205.13,205.02,4.3891]
[1756484214444,0.03,205.14,205.01,327.6]
[1756484214749,0.03,205.14,205.01,395.8793]
[1756484215150,0.03,205.14,205.04,4.3887]
[1756484215349,0.03,205.14,205.01,327.6]
[1756484215851,12.20186373,205.12,205.01,331.9892]
[1756484216445,12.20186373,205.12,205.01,327.6]
[1756484216645,0.03,205.14,205.04,68.2685]
[1756484216845,12.20186373,205.16,205.05,7.19]
[1756484217350,4.3862,205.16,205.05,11.5784]
[1756484217650,159.12186373,205.17,205.05,7.19]
[1756484217852,12.20186373,205.13,204.99,7.19]
[1756484218048,0.03,205.12,204.99,7.19]
[1756484218462,68.2868,205.08,204.93,7.19]
[1756484218649,146.87,205.07,204.95,68.2995]
[1756484218850,0.03,205.07,204.95,68.2995]
[1756484219249,0.03,205.07,204.99,4.3898]
[1756484219652,0.03,205.07,204.93,7.19]
[1756484219853,0.03,205.07,204.96,4.3904]
[1756484220055,0.03,205.07,204.95,68.2982]
[1756484220257,0.03,205.13,205.02,68.2758]
[1756484220647,0.03,205.11,204.93,68.3047]
[1756484220848,0.03,205.09,204.94,7.19]
[1756484221047,0.03,205.05,204.94,7.19]
[1756484221352,0.03,205.02,204.9,68.315]
[1756484221552,0.03,205.02,204.88,7.19]
[1756484221751,0.03,205.02,204.89,68.3187]
[1756484221949,68.2644,205.06,204.94,68.3018]
[1756484221950,146.76,205.06,204.94,68.3018]
[1756484222149,0.0327784,204.97,204.93,7.19]
[1756484222349,0.03,205.04,204.93,7.19]
[1756484222749,0.03672306,204.97,204.93,7.19]
[1756484222945,0.03672306,204.97,204.94,4.3908]
[1756484223154,2.306e-05,204.97,204.94,68.3024]
[1756484223461,2.306e-05,204.97,204.95,7.19]
[1756484223655,2.306e-05,204.97,204.96,11.5804]
[1756484223958,0.03,205.09,204.98,68.289]
[1756484224345,0.03,205.09,204.96,7.19]
[1756484224547,12.20186373,205.07,204.9,7.19]
[1756484224753,0.03,205.06,204.95,4.3906]
[1756484225050,0.03,205.06,204.96,0.0321101]
[1756484225658,68.2702,205.04,204.96,0.0321101]
[1756484225953,0.03,205.02,204.96,0.0321101]
[1756484226157,12.20186373,205.07,204.96,0.0321101]
[1756484226458,80.48576373,205.0,204.96,0.0321101]
[1756484226657,80.48576373,205.0,204.84,7.19]
[1756484226658,68.2934,204.97,204.84,7.19]
[1756484226859,4.391,204.94,204.84,7.19]
[1756484227257,12.20186373,204.96,204.84,7.19]
[1756484227456,4.3907,204.95,204.84,7.19]
[1756484227655,12.20186373,204.96,204.84,7.19]
[1756484227854,0.03,204.95,204.82,4.3932]
[1756484228059,68.3302,204.95,204.82,4.3932]
[1756484228262,327.69,205.03,204.89,68.3192]
[1756484228760,332.0791,205.03,204.92,4.3912]
[1756484230159,4.3894,205.01,204.89,4.3917]
[1756484230459,327.69,205.03,204.89,4.3917]
[1756484230765,4.3893,205.02,204.89,4.3917]
[1756484231161,4.3893,205.02,204.91,4.3915]
[1756484231357,327.66,205.03,204.93,68.3059]
[1756484231565,146.58,205.06,204.96,68.2941]
[1756484231763,146.58,205.06,204.97,7.54]
[1756484231964,146.58,205.06,205.01,11.9293]
[1756484232463,146.58,205.06,204.95,4.3905]
[1756484232664,0.03,205.08,204.96,68.2961]
[1756484233368,0.03,205.08,204.97,7.54]
[1756484233869,0.03,205.08,204.99,4.3898]
[1756484234160,0.03,205.08,204.97,7.54]
[1756484234964,68.2608,205.07,204.92,7.54]
[1756484235468,4.3894,205.01,204.92,7.54]
[1756484235864,68.2734,205.03,204.92,7.54]
[1756484236063,68.2801,205.01,204.92,7.54]
[1756484236263,68.2734,205.03,204.86,7.54]
[1756484236864,0.04,205.02,204.86,7.54]
[1756484237067,4.3904,204.97,204.86,7.54]
[1756484237267,12.24186373,205.02,204.86,7.54]
[1756484237462,4.3898,205.0,204.87,68.3256]
[1756484238668,4.3898,205.0,204.91,4.3915]
[1756484238968,146.42,205.03,204.92,7.54]
[1756484239773,4.3893,205.02,204.92,7.54]
[1756484240473,4.3893,205.02,204.94,4.3909]
[1756484240775,68.335,204.97,204.85,7.54]
[1756484241273,4.3907,204.96,204.85,7.54]
[1756484241577,0.04,204.97,204.85,7.54]
[1756484241868,4.3914,204.92,204.85,7.54]
[1756484242173,0.04,204.97,204.85,7.54]
[1756484243071,68.3492,204.93,204.82,189.24759848]
[1756484243272,68.3158,204.91,204.82,189.24759848]
[1756484243469,0.04,204.93,204.82,189.24759848]
[1756484243675,68.3507,204.93,204.82,189.24759848]
[1756484243877,68.368,204.88,204.75,7.99799363]
[1756484244078,4.3937,204.82,204.75,7.99799363]
[1756484244376,146.26,204.85,204.75,7.99799363]
[1756484244777,4.3932,204.84,204.75,7.99799363]
[1756484245477,146.26,204.85,204.75,12.39299363]
[1756484245679,146.26,204.85,204.75,4.395]
[1756484246180,4.3935,204.83,204.73,7.54]
[1756484246475,4.3935,204.83,204.68,5.33199575]
[1756484246476,4.3946,204.78,204.68,5.33199575]
[1756484246681,0.04,204.8,204.68,5.33199575]
[1756484247070,4.3948,204.77,204.68,9.72849575]
[1756484247383,146.2,204.77,204.68,5.33199575]
[1756484247775,4.395,204.76,204.68,5.33199575]
[1756484247976,226.76616373,204.77,204.68,5.33199575]
[1756484248278,146.18,204.76,204.68,5.33199575]
[1756484248477,0.04,204.8,204.68,5.33199575]
[1756484248882,4.3937,204.83,204.72,4.3958]
[1756484249272,146.16,204.82,204.72,4.3958]
[1756484249472,16.63576373,204.81,204.69,4.3963]
[1756484249673,12.24186373,204.81,204.7,7.54]
[1756484250179,0.03263054,204.77,204.73,68.3757]
[1756484250382,0.04,204.71,204.68,5.33199575]
[1756484250579,68.3806,204.72,204.68,5.33199575]
[1756484250580,12.20186373,204.73,204.68,5.33199575]
[1756484250884,0.03358765,204.72,204.68,5.33199575]
[1756484252078,0.07358765,204.72,204.68,5.33199575]
[1756484252274,0.04,204.71,204.68,5.33199575]
[1756484252479,0.03358765,204.72,204.68,5.33199575]
[1756484252677,12.24186373,204.82,204.69,7.54]
[1756484252880,0.04,204.82,204.69,7.54]
[1756484253082,12.20186373,204.83,204.69,7.54]
[1756484253381,146.1,204.86,204.69,7.54]
[1756484253783,486.20186373,204.87,204.69,7.54]
[1756484254082,486.20186373,204.87,204.75,0.03652355]
[1756484254389,12.20186373,204.83,204.75,0.03652355]
[1756484256286,12.20186373,204.79,204.75,0.03652355]
[1756484256483,0.07,204.78,204.75,0.03652355]
[1756484256787,0.08,204.78,204.68,5.33199575]
[1756484257787,12.20186373,204.75,204.68,5.33199575]
[1756484257996,0.08,204.74,204.68,5.33199575]
[1756484258287,146.0,204.75,204.68,5.33199575]
[1756484258489,0.03134459,204.73,204.68,5.33199575]
[1756484259078,0.11134459,204.73,204.68,5.33199575]
[1756484259479,12.20186373,204.71,204.68,5.33199575]
[1756484259685,0.08,204.7,204.68,5.33199575]
[1756484260390,12.20186373,204.71,204.68,5.33199575]
[1756484260690,12.20186373,204.71,204.58,7.34]
[1756484260986,12.20186373,204.62,204.44,7.34]
[1756484261190,12.20186373,204.54,204.44,7.34]
[1756484261390,19.74,204.53,204.44,7.34]
[1756484261688,101.54186373,204.6,204.44,7.34]
[1756484262097,101.54186373,204.6,204.51,7.34]
[1756484262286,101.54186373,204.6,204.5,0.0320444]
[1756484262488,12.20186373,204.56,204.5,0.0320444]
[1756484264985,12.20186373,204.52,204.5,0.0320444]
[1756484265293,12.20186373,204.52,204.43,5.33199575]
[1756484265492,12.20186373,204.55,204.43,5.33199575]
[1756484266689,0.03349363,204.51,204.47,0.03756443]
[1756484267098,126.52243032,204.64,204.48,7.34]
[1756484267099,126.63243032,204.64,204.48,7.34]
[1756484267397,138.83429405,204.64,204.48,7.34]
[1756484268395,138.83429405,204.64,204.54,0.03389666]
[1756484268991,0.11,204.64,204.54,0.03389666]
[1756484269194,120.3,204.67,204.54,0.03389666]
[1756484269592,120.3,204.67,204.53,7.34]
[1756484269794,120.3,204.67,204.58,0.03397348]
[1756484269994,0.15,204.63,204.58,0.03397348]
[1756484270394,12.35186373,204.64,204.58,0.03397348]
[1756484270994,12.20186373,204.6,204.58,0.03397348]
[1756484271191,0.15,204.59,204.47,7.34]
[1756484271998,12.20186373,204.6,204.47,7.34]
[1756484272397,0.03102005,204.56,204.47,7.34]
[1756484273695,0.03102005,204.56,204.49,4.4006]
[1756484274291,0.03102005,204.56,204.51,4.4006]
[1756484274492,12.20186373,204.66,204.52,68.4512]
[1756484274697,0.18,204.69,204.55,68.4399]
[1756484274898,0.18,204.69,204.59,4.3988]
[1756484275093,0.18,204.69,204.52,68.4512]
[1756484275291,0.18,204.69,204.54,68.4455]
[1756484275694,4.3973,204.67,204.58,4.399]
[1756484275995,0.18,204.69,204.59,0.03714287]
[1756484276198,4.3981,204.64,204.59,0.03714287]
[1756484276499,4.3981,204.64,204.51,68.4556]
[1756484276900,12.20186373,204.67,204.59,0.03409626]
[1756484277298,12.20186373,204.71,204.59,0.03409626]
[1756484277698,12.20186373,204.71,204.55,68.4422]
[1756484277699,12.20186373,204.71,204.58,68.43]
[1756484277908,12.20186373,204.71,204.56,68.4379]
[1756484278099,12.20186373,204.67,204.63,0.03209726]
[1756484278699,4.3977,204.65,204.63,0.03209726]
[1756484279204,150.0377,204.65,204.63,0.03209726]
[1756484279400,4.3985,204.61,204.52,4.4004]
[1756484279798,4.3985,204.61,204.5,4.4009]
[1756484280103,4.399,204.59,204.45,68.4728]
[1756484280303,68.4333,204.58,204.4,68.4901]
[1756484280605,12.20186373,204.59,204.43,68.482]
[1756484280798,68.4422,204.55,204.42,4.4026]
[1756484280997,157.80186373,204.55,204.4,68.4922]
[1756484281203,157.80186373,204.55,204.42,68.4845]
[1756484281598,157.80186373,204.55,204.4,68.4922]
[1756484281803,4.4005,204.52,204.38,68.498]
[1756484281997,157.80186373,204.55,204.4,68.4927]
[1756484282302,157.80186373,204.55,204.44,4.402]
[1756484282804,157.80186373,204.55,204.41,4.4026]
[1756484283405,68.4499,204.53,204.39,4.4032]
[1756484283706,12.20186373,204.51,204.39,4.4032]
[1756484283906,12.20186373,204.55,204.41,68.489]
[1756484284102,145.54,204.56,204.42,68.4856]
[1756484284306,0.03108288,204.47,204.38,68.4993]
[1756484284808,0.03108288,204.47,204.41,4.4026]
[1756484285005,0.03108288,204.47,204.35,68.5089]
[1756484285205,0.03108288,204.47,204.38,68.4985]
[1756484285407,0.03108288,204.47,204.42,68.4856]
[1756484285711,12.20186373,204.58,204.45,68.4755]
[1756484285907,12.20186373,204.58,204.43,68.4826]
[1756484285908,0.03282858,204.47,204.43,68.4826]
[1756484286099,12.20186373,204.58,204.41,68.4884]
[1756484286100,80.63446373,204.58,204.41,68.4884]
[1756484286299,12.20186373,204.54,204.39,68.496]
[1756484286504,145.48,204.52,204.35,68.5062]
[1756484286706,145.48,204.52,204.4,4.403]
[1756484287012,145.48,204.52,204.38,68.4993]
[1756484287212,0.03693513,204.48,204.44,0.03355683]
[1756484288914,0.03693513,204.48,204.44,4.43555683]
[1756484289409,0.03693513,204.48,204.44,0.03355683]
[1756484292908,4.402,204.46,204.44,0.03355683]
[1756484293109,4.622,204.46,204.44,0.03355683]
[1756484293308,4.402,204.46,204.44,0.03355683]
[1756484293507,0.22,204.45,204.44,0.03355683]
[1756484293709,0.7,204.45,204.33,7.28]
[1756484293908,0.22,204.45,204.33,7.28]
[1756484294105,12.20186373,204.42,204.24,7.28]
[1756484294313,0.22,204.41,204.24,7.28]
[1756484294607,0.22,204.41,204.29,7.28]
[1756484294807,0.22,204.41,204.25,68.542]
[1756484294808,68.5034,204.37,204.21,7.28]
[1756484295133,12.20186373,204.31,204.21,7.28]
[1756484295514,68.7462,204.3,204.15,15.27799363]
[1756484295709,12.20186373,204.27,204.15,15.27799363]
[1756484295913,157.48186373,204.27,204.15,15.27799363]
[1756484296319,157.48186373,204.27,204.15,7.77799363]
[1756484296320,12.20186373,204.19,204.15,7.77799363]
[1756484296510,145.26,204.18,204.1,10.76201728]
[1756484296908,12.20186373,204.19,204.1,10.76201728]
[1756484297110,0.03093674,204.16,204.1,10.76201728]
[1756484299414,0.03093674,204.16,204.1,18.04201728]
[1756484299716,12.23280047,204.16,204.1,18.04201728]
[1756484299921,12.23280047,204.16,204.1,10.76201728]
[1756484300808,0.03093674,204.16,204.1,10.76201728]
[1756484301013,0.03093674,204.16,204.1,18.04201728]
[1756484301318,0.03093674,204.16,204.12,7.28]
[1756484301506,0.03093674,204.16,204.1,18.04201728]
[1756484301711,0.03093674,204.16,204.1,22.45141728]
[1756484301913,0.03093674,204.16,204.11,68.5894]
[1756484302212,0.03093674,204.16,204.12,4.4089]
[1756484302408,0.03093674,204.16,204.08,7.28]
[1756484303214,0.03093674,204.16,204.1,0.03554335]
[1756484307520,4.4088,204.14,204.1,0.03554335]
[1756484307716,0.03093674,204.16,204.1,0.03554335]
[1756484307717,157.36186373,204.13,204.1,4.335e-05]
[1756484307920,145.16,204.12,204.1,4.335e-05]
[1756484309319,145.64,204.12,204.1,4.335e-05]
[1756484309822,68.5954,204.1,203.93,7.28]
[1756484310317,80.77816373,204.15,203.97,7.28]
[1756484310516,145.14,204.14,203.98,7.28]
[1756484311016,0.03699651,204.08,204.0,4.4115]
[1756484311225,0.03699651,204.08,203.99,7.28]
[1756484311622,12.20186373,204.2,204.05,7.28]
[1756484311822,145.12,204.19,204.05,7.28]
[1756484312021,145.12,204.19,204.08,4.4099]
[1756484312423,328.82,204.22,204.1,75.8727]
[1756484312814,328.82,204.22,204.14,4.4086]
[1756484313015,0.03671178,204.18,204.15,68.5754]
[1756484313219,5.17053561,204.27,204.16,7.28]
[1756484313521,5.17053561,204.27,204.18,4.4077]
[1756484313719,5.17053561,204.27,204.18,68.5656]
[1756484313914,5.17053561,204.27,204.19,7.28]
[1756484314820,5.17053561,204.27,204.2,68.5578]
[1756484315022,5.17053561,204.27,204.21,7.28]
[1756484315527,5.17053561,204.27,204.21,75.8356]
[1756484315725,5.17053561,204.27,204.23,68.5476]
[1756484315921,7.557409,204.29,204.25,7.28]
[1756484316228,7.557409,204.29,204.26,4.406]
[1756484316622,7.557409,204.29,204.28,4.4056]
[1756484316817,10.07654533,204.35,204.28,7.86]
[1756484317024,10.07654533,204.35,204.28,7.38]
[1756484317425,10.07654533,204.35,204.29,4.4053]
[1756484317630,10.07654533,204.35,204.31,7.38]
[1756484317829,10.07654533,204.35,204.29,7.38]
[1756484318028,10.07654533,204.35,204.29,20.06186373]
[1756484318225,10.07654533,204.35,204.32,7.38]
[1756484318429,10.07654533,204.35,204.27,7.38]
[1756484319028,78.58604533,204.35,204.2,144.92]
[1756484319219,68.5135,204.34,204.19,7.38]
[1756484319628,4.4046,204.33,204.2,7.38]
[1756484319830,10.07654533,204.35,204.2,7.38]
[1756484320030,78.58594533,204.35,204.2,7.38]
[1756484320332,4.4044,204.34,204.2,7.38]
[1756484320531,10.07654533,204.35,204.2,7.38]
[1756484320832,221.2624,204.37,204.2,7.38]
[1756484321530,68.5168,204.33,204.2,7.38]
[1756484321836,7.84,204.34,204.2,7.38]
[1756484322130,68.5188,204.32,204.2,7.38]
[1756484322328,68.5225,204.31,204.2,7.38]
[1756484322535,4.4053,204.3,204.2,7.38]
[1756484323732,4.4046,204.33,204.2,7.38]
[1756484323935,68.5026,204.37,204.2,7.38]
[1756484324630,4.4044,204.34,204.2,7.38]
[1756484324828,68.5126,204.34,204.2,7.38]
[1756484325030,4.4048,204.32,204.2,7.38]
[1756484325941,24.44606373,204.35,204.2,11.7872]
[1756484326145,12.2442,204.35,204.2,11.7872]
[1756484326344,7.84,204.35,204.2,11.7872]
[1756484327040,7.84,204.35,204.21,68.5544]
[1756484327245,144.74,204.37,204.23,7.38]
[1756484327462,144.74,204.37,204.26,7.38]
[1756484327653,7.84,204.39,204.27,68.5352]
[1756484327945,4.4025,204.43,204.27,68.5352]
[1756484328149,4.4041,204.35,204.26,7.38]
[1756484328443,7.84,204.37,204.26,7.38]
[1756484328948,12.2437,204.37,204.26,7.38]
[1756484329243,7.84,204.44,204.27,68.5354]
[1756484329452,16.60436373,204.43,204.28,68.5304]
[1756484329642,68.4857,204.42,204.26,7.38]
[1756484330042,4.4033,204.39,204.27,4.4057]
[1756484330246,80.68536373,204.43,204.27,4.4057]
[1756484330446,68.5001,204.38,204.26,7.38]
[1756484330646,4.4043,204.34,204.21,7.38]
[1756484331445,4.4047,204.32,204.21,7.38]
[1756484331649,4.4047,204.32,204.16,7.38]
[1756484331650,76.3597,204.32,204.16,7.38]
[1756484332250,4.4057,204.28,204.18,4.4074]
[1756484332548,7.84,204.32,204.18,4.4074]
[1756484332746,76.3564,204.32,204.16,7.38]